[Event "Late-Titled-Tuesday-Blitz-March-05-2024"]
[Site "Chess.com"]
[Date "2024.03.05"]
[Round "8"]
[White "HajiyevKanan"]
[Black "Rutricks"]
[Result "0-1"]
[WhiteElo "2552"]
[BlackElo "2728"]
[TimeControl "180+1"]
[EndTime "15:26:14 PST"]
[Termination "Rutricks won by resignation"]

1. d4 {[%clk 0:03:00.9]} 1... g6 {[%clk 0:02:58.5]} 2. Nf3 {[%clk 0:03:01.1]}
2... Bg7 {[%clk 0:02:59.1]} 3. g3 {[%clk 0:03:01.9]} 3... Nf6 {[%clk 0:02:58.9]}
4. Bg2 {[%clk 0:03:02.5]} 4... O-O {[%clk 0:02:59.8]} 5. O-O {[%clk 0:03:03.2]}
5... d6 {[%clk 0:03:00.7]} 6. b3 {[%clk 0:03:03.7]} 6... Nbd7 {[%clk 0:03:01.4]}
7. Bb2 {[%clk 0:03:04.4]} 7... c5 {[%clk 0:03:02.3]} 8. c4 {[%clk 0:03:04.2]}
8... Rb8 {[%clk 0:03:02.7]} 9. Nc3 {[%clk 0:03:04.6]} 9... a6 {[%clk 0:03:02.3]}
10. a4 {[%clk 0:02:59.4]} 10... b6 {[%clk 0:03:02.2]} 11. d5 {[%clk 0:02:57.1]}
11... Ne8 {[%clk 0:03:02.4]} 12. Qc2 {[%clk 0:02:56.3]} 12... Nc7 {[%clk
0:03:03.3]} 13. e4 {[%clk 0:02:55.8]} 13... b5 {[%clk 0:03:03.1]} 14. axb5
{[%clk 0:02:55.8]} 14... axb5 {[%clk 0:03:04]} 15. Nd1 {[%clk 0:02:32.7]} 15...
f6 {[%clk 0:02:51.7]} 16. Ra7 {[%clk 0:02:27.1]} 16... Na6 {[%clk 0:02:33.9]}
17. Bh3 {[%clk 0:02:22.5]} 17... Ne5 {[%clk 0:01:46.8]} 18. Nxe5 {[%clk
0:01:48.4]} 18... Bxh3 {[%clk 0:01:06.2]} 19. Nc6 {[%clk 0:01:47.6]} 19... Qb6
{[%clk 0:01:06.9]} 20. Re1 {[%clk 0:01:35.7]} 20... e5 {[%clk 0:01:07.1]} 21.
Nxb8 {[%clk 0:00:45.3]} 21... Qxa7 {[%clk 0:01:03.6]} 22. Nc6 {[%clk 0:00:45.6]}
22... Qb6 {[%clk 0:01:03.9]} 23. Nc3 {[%clk 0:00:46.3]} 23... bxc4 {[%clk
0:00:55.1]} 24. bxc4 {[%clk 0:00:47.2]} 24... Nb4 {[%clk 0:00:54.2]} 25. Qb3
{[%clk 0:00:44.9]} 25... Ra8 {[%clk 0:00:25.5]} 26. Ba3 {[%clk 0:00:28.8]} 26...
Nxd5 {[%clk 0:00:20.7]} 27. Qxb6 {[%clk 0:00:22.5]} 27... Nxb6 {[%clk 0:00:21]}
28. Nb5 {[%clk 0:00:17.8]} 28... Nxc4 {[%clk 0:00:15]} 29. Bc1 {[%clk
0:00:17.3]} 29... Bd7 {[%clk 0:00:15.5]} 30. Nc7 {[%clk 0:00:14.5]} 30... Ra1
{[%clk 0:00:11.9]} 31. Ne7+ {[%clk 0:00:13.5]} 31... Kf7 {[%clk 0:00:12.4]} 32.
Ned5 {[%clk 0:00:14.2]} 32... Bh6 {[%clk 0:00:11.2]} 33. Bd2 {[%clk 0:00:14.8]}
33... Rxe1+ {[%clk 0:00:07.9]} 34. Bxe1 {[%clk 0:00:15.7]} 34... f5 {[%clk
0:00:07.2]} 35. f3 {[%clk 0:00:13.8]} 35... fxe4 {[%clk 0:00:07.2]} 36. fxe4
{[%clk 0:00:14.7]} 36... Be3+ {[%clk 0:00:05.3]} 37. Kg2 {[%clk 0:00:15.3]}
37... Bd4 {[%clk 0:00:05.4]} 38. Bf2 {[%clk 0:00:14.4]} 38... Nd2 {[%clk
0:00:04.5]} 39. Na6 {[%clk 0:00:12.2]} 39... Nxe4 {[%clk 0:00:04.2]} 40. Ndc7
{[%clk 0:00:11.5]} 40... Bc6 {[%clk 0:00:04.6]} 41. Nb8 {[%clk 0:00:10.8]} 41...
Nxf2+ {[%clk 0:00:04.9]} 42. Nxc6 {[%clk 0:00:10.9]} 42... Be3 {[%clk
0:00:04.4]} 43. Kf3 {[%clk 0:00:10.4]} 43... Nd1 {[%clk 0:00:03]} 44. Nd5 {[%clk
0:00:10.2]} 44... Bg1 {[%clk 0:00:02.2]} 45. h4 {[%clk 0:00:10.1]} 45... Ke6
{[%clk 0:00:02.3]} 46. Nb6 {[%clk 0:00:08.2]} 46... Nc3 {[%clk 0:00:02.1]} 47.
Na5 {[%clk 0:00:08.4]} 47... Bd4 {[%clk 0:00:02.5]} 48. Nbc4 {[%clk 0:00:08.2]}
48... e4+ {[%clk 0:00:03.4]} 49. Kf4 {[%clk 0:00:07.6]} 49... d5 {[%clk
0:00:04.3]} 50. Nb6 {[%clk 0:00:07.6]} 50... Ne2+ {[%clk 0:00:04]} 51. Kg4
{[%clk 0:00:07.2]} 51... Be5 {[%clk 0:00:04.5]} 52. Nc6 {[%clk 0:00:07.2]} 52...
Nxg3 {[%clk 0:00:04.6]} 53. Nxe5 {[%clk 0:00:07.1]} 53... Kxe5 {[%clk
0:00:05.2]} 54. Kxg3 {[%clk 0:00:07.7]} 54... c4 {[%clk 0:00:05.9]} 55. Kf2
{[%clk 0:00:06.7]} 55... c3 {[%clk 0:00:06.6]} 56. Ke3 {[%clk 0:00:07]} 56...
d4+ {[%clk 0:00:07.2]} 57. Ke2 {[%clk 0:00:07.2]} 57... d3+ {[%clk 0:00:07.3]}
58. Ke3 {[%clk 0:00:07.4]} 58... c2 {[%clk 0:00:08]} 59. Kd2 {[%clk 0:00:07.6]}
59... Kd4 {[%clk 0:00:08.9]} 60. Na4 {[%clk 0:00:05.3]} 60... e3+ {[%clk
0:00:09.4]} 61. Kc1 {[%clk 0:00:05.8]} 61... e2 {[%clk 0:00:10.1]} 62. Kd2
{[%clk 0:00:05.6]} 62... e1=Q+ {[%clk 0:00:10.6]} 0-1

[Event "Late-Titled-Tuesday-Blitz-March-05-2024"]
[Site "Chess.com"]
[Date "2024.03.05"]
[Round "8"]
[White "andrzej"]
[Black "IngOscarArdila"]
[Result "1-0"]
[WhiteElo "2487"]
[BlackElo "2322"]
[TimeControl "180+1"]
[EndTime "15:26:14 PST"]
[Termination "andrzej won on time"]

1. e4 {[%clk 0:03:00.9]} 1... e5 {[%clk 0:02:59.4]} 2. Nf3 {[%clk 0:03:00.8]}
2... Nf6 {[%clk 0:02:59.1]} 3. Nxe5 {[%clk 0:03:00.6]} 3... d6 {[%clk
0:02:59.2]} 4. Nf3 {[%clk 0:03:01]} 4... Nxe4 {[%clk 0:02:59.6]} 5. d4 {[%clk
0:03:01.5]} 5... Be7 {[%clk 0:02:59.3]} 6. Bd3 {[%clk 0:03:01.8]} 6... d5 {[%clk
0:02:59.6]} 7. O-O {[%clk 0:03:02.2]} 7... Nc6 {[%clk 0:02:59.9]} 8. Nbd2 {[%clk
0:02:46.9]} 8... Nf6 {[%clk 0:02:52.9]} 9. c3 {[%clk 0:02:44.1]} 9... Bg4 {[%clk
0:02:51.9]} 10. Qb3 {[%clk 0:02:43.7]} 10... Na5 {[%clk 0:02:42.1]} 11. Qa4+
{[%clk 0:02:42.9]} 11... Nc6 {[%clk 0:02:31.6]} 12. Ne5 {[%clk 0:02:42.4]} 12...
Bd7 {[%clk 0:02:28.8]} 13. Nxd7 {[%clk 0:02:38.2]} 13... Qxd7 {[%clk 0:02:28.5]}
14. Bb5 {[%clk 0:02:36.2]} 14... O-O {[%clk 0:02:24.8]} 15. Nf3 {[%clk 0:02:36]}
15... Bd6 {[%clk 0:02:20.9]} 16. Ne5 {[%clk 0:02:33.5]} 16... Bxe5 {[%clk
0:02:20.2]} 17. dxe5 {[%clk 0:02:34.4]} 17... Ne4 {[%clk 0:02:14.3]} 18. Rd1
{[%clk 0:02:19.6]} 18... Nc5 {[%clk 0:02:10.5]} 19. Qh4 {[%clk 0:02:10.4]} 19...
a6 {[%clk 0:02:07.1]} 20. Bc4 {[%clk 0:02:03.7]} 20... Ne7 {[%clk 0:01:51.7]}
21. Be3 {[%clk 0:01:54.8]} 21... Ne6 {[%clk 0:01:39.6]} 22. Bd3 {[%clk
0:01:49.4]} 22... Ng6 {[%clk 0:01:39.5]} 23. Qh5 {[%clk 0:01:48.3]} 23... Rfe8
{[%clk 0:01:19.2]} 24. f4 {[%clk 0:01:41.5]} 24... Nef8 {[%clk 0:01:02.8]} 25.
c4 {[%clk 0:01:25]} 25... c6 {[%clk 0:00:58.8]} 26. Bf5 {[%clk 0:01:18.5]} 26...
Qd8 {[%clk 0:00:52.8]} 27. Rd2 {[%clk 0:00:57.7]} 27... Qc7 {[%clk 0:00:27.1]}
28. cxd5 {[%clk 0:00:55.3]} 28... cxd5 {[%clk 0:00:28]} 29. Rxd5 {[%clk
0:00:51.1]} 29... Rad8 {[%clk 0:00:27.5]} 30. Rxd8 {[%clk 0:00:48.2]} 30... Rxd8
{[%clk 0:00:27.5]} 31. Qf3 {[%clk 0:00:41.6]} 31... Nh4 {[%clk 0:00:19.6]} 32.
Qe4 {[%clk 0:00:41.6]} 32... Nxf5 {[%clk 0:00:19.4]} 33. Qxf5 {[%clk 0:00:42.5]}
33... Qc6 {[%clk 0:00:15.8]} 34. Rc1 {[%clk 0:00:34.1]} 34... Qb5 {[%clk
0:00:15.2]} 35. Qc2 {[%clk 0:00:32.6]} 35... Ne6 {[%clk 0:00:14]} 36. f5 {[%clk
0:00:23.9]} 36... Qxe5 {[%clk 0:00:13.3]} 37. Re1 {[%clk 0:00:15.7]} 37... Nf8
{[%clk 0:00:10.8]} 38. Bf2 {[%clk 0:00:14.2]} 38... Qd6 {[%clk 0:00:10]} 39. h3
{[%clk 0:00:12.1]} 39... Qd5 {[%clk 0:00:09.4]} 40. Qb1 {[%clk 0:00:06.9]} 40...
Qd3 {[%clk 0:00:08.4]} 41. Kh2 {[%clk 0:00:04.5]} 41... f6 {[%clk 0:00:07.5]}
42. Bg3 {[%clk 0:00:04.3]} 42... Qxb1 {[%clk 0:00:06.8]} 43. Rxb1 {[%clk
0:00:05.2]} 43... Rd2 {[%clk 0:00:06.5]} 44. a3 {[%clk 0:00:02.7]} 44... Nd7
{[%clk 0:00:05.4]} 45. b4 {[%clk 0:00:02.8]} 45... Kf7 {[%clk 0:00:04.2]} 46.
Rc1 {[%clk 0:00:03]} 46... g6 {[%clk 0:00:03.1]} 47. Rc7 {[%clk 0:00:03.1]}
47... gxf5 {[%clk 0:00:02.2]} 48. Rxb7 {[%clk 0:00:03.3]} 48... Ke6 {[%clk
0:00:02.3]} 49. a4 {[%clk 0:00:03]} 49... Rd4 {[%clk 0:00:02.1]} 50. b5 {[%clk
0:00:02.8]} 50... axb5 {[%clk 0:00:02.5]} 51. axb5 {[%clk 0:00:03.7]} 51... Nc5
{[%clk 0:00:02.6]} 52. Rb6+ {[%clk 0:00:03.2]} 52... Kf7 {[%clk 0:00:02.6]} 53.
Bf2 {[%clk 0:00:03.5]} 53... Rc4 {[%clk 0:00:02]} 54. Rc6 {[%clk 0:00:04]} 1-0

[Event "Late-Titled-Tuesday-Blitz-March-05-2024"]
[Site "Chess.com"]
[Date "2024.03.05"]
[Round "8"]
[White "BilicVladimir"]
[Black "tolimachess"]
[Result "1/2-1/2"]
[WhiteElo "2621"]
[BlackElo "2457"]
[TimeControl "180+1"]
[EndTime "15:26:20 PST"]
[Termination "Game drawn - insufficient material"]

1. Nf3 {[%clk 0:03:00.9]} 1... Nf6 {[%clk 0:02:55.2]} 2. c4 {[%clk 0:03:01.8]}
2... c5 {[%clk 0:02:54]} 3. d4 {[%clk 0:03:02.4]} 3... cxd4 {[%clk 0:02:54.3]}
4. Nxd4 {[%clk 0:03:03]} 4... g6 {[%clk 0:02:54.5]} 5. g3 {[%clk 0:03:02.7]}
5... Bg7 {[%clk 0:02:55]} 6. Bg2 {[%clk 0:03:03.2]} 6... Nc6 {[%clk 0:02:55.7]}
7. O-O {[%clk 0:03:03]} 7... O-O {[%clk 0:02:55.5]} 8. Nc2 {[%clk 0:03:02.9]}
8... b6 {[%clk 0:02:54.3]} 9. Nc3 {[%clk 0:03:02]} 9... Bb7 {[%clk 0:02:54.6]}
10. b3 {[%clk 0:03:01.9]} 10... d6 {[%clk 0:02:49]} 11. Bb2 {[%clk 0:03:01.6]}
11... Qd7 {[%clk 0:02:46.9]} 12. Nd5 {[%clk 0:03:01.4]} 12... Nxd5 {[%clk
0:02:42.2]} 13. Bxg7 {[%clk 0:03:00.8]} 13... Kxg7 {[%clk 0:02:43.1]} 14. cxd5
{[%clk 0:02:59.8]} 14... Ne5 {[%clk 0:02:41.4]} 15. Nd4 {[%clk 0:02:59.7]} 15...
Rac8 {[%clk 0:02:40.5]} 16. h3 {[%clk 0:02:54.7]} 16... Rc3 {[%clk 0:02:31.3]}
17. Rc1 {[%clk 0:02:46.1]} 17... Rfc8 {[%clk 0:02:30.2]} 18. Qd2 {[%clk
0:02:46.2]} 18... Rxc1 {[%clk 0:02:17.5]} 19. Rxc1 {[%clk 0:02:44.7]} 19... Qd8
{[%clk 0:02:09.7]} 20. f4 {[%clk 0:02:42.5]} 20... Nd7 {[%clk 0:02:10]} 21. Nc6
{[%clk 0:02:42.3]} 21... Bxc6 {[%clk 0:02:10.3]} 22. dxc6 {[%clk 0:02:42.2]}
22... Nf6 {[%clk 0:02:10.8]} 23. b4 {[%clk 0:02:40]} 23... a6 {[%clk 0:02:10.3]}
24. a4 {[%clk 0:02:39.3]} 24... b5 {[%clk 0:02:09.9]} 25. axb5 {[%clk
0:02:37.6]} 25... Qb6+ {[%clk 0:02:08.7]} 26. Kh2 {[%clk 0:02:34.3]} 26... axb5
{[%clk 0:02:02.8]} 27. Qc3 {[%clk 0:02:34.1]} 27... Rc7 {[%clk 0:02:02.5]} 28.
e4 {[%clk 0:02:33.1]} 28... e5 {[%clk 0:01:59.2]} 29. fxe5 {[%clk 0:02:12.9]}
29... dxe5 {[%clk 0:02:00.1]} 30. Qc5 {[%clk 0:02:11.4]} 30... Qxc5 {[%clk
0:01:12.8]} 31. Rxc5 {[%clk 0:02:10]} 31... Kf8 {[%clk 0:01:07.9]} 32. Kg1
{[%clk 0:02:04.5]} 32... h5 {[%clk 0:01:03.9]} 33. Kf2 {[%clk 0:02:03.9]} 33...
Ne8 {[%clk 0:01:03.5]} 34. Ke3 {[%clk 0:01:55.4]} 34... Nd6 {[%clk 0:01:00.4]}
35. Bf1 {[%clk 0:01:54.9]} 35... f6 {[%clk 0:00:57]} 36. g4 {[%clk 0:01:32.8]}
36... hxg4 {[%clk 0:00:54.9]} 37. hxg4 {[%clk 0:01:33.7]} 37... g5 {[%clk
0:00:51.5]} 38. Bxb5 {[%clk 0:01:29.3]} 38... Nxb5 {[%clk 0:00:47.4]} 39. Rxb5
{[%clk 0:01:29.4]} 39... Rxc6 {[%clk 0:00:48]} 40. Rc5 {[%clk 0:01:29.4]} 40...
Rb6 {[%clk 0:00:47.7]} 41. b5 {[%clk 0:01:29]} 41... Ke7 {[%clk 0:00:47.9]} 42.
Kd3 {[%clk 0:01:29.3]} 42... Rd6+ {[%clk 0:00:46.3]} 43. Ke3 {[%clk 0:01:26.3]}
43... Kd7 {[%clk 0:00:36.3]} 44. Rd5 {[%clk 0:01:18.2]} 44... Kc7 {[%clk
0:00:33]} 45. Kd3 {[%clk 0:01:15.1]} 45... Re6 {[%clk 0:00:26.7]} 46. Kc4 {[%clk
0:01:14.2]} 46... Re8 {[%clk 0:00:24.3]} 47. Kc5 {[%clk 0:01:12.4]} 47... Re6
{[%clk 0:00:17.7]} 48. Rd1 {[%clk 0:01:07.3]} 48... Re8 {[%clk 0:00:09.8]} 49.
b6+ {[%clk 0:01:03.9]} 49... Kb8 {[%clk 0:00:10.2]} 50. Rd6 {[%clk 0:01:02.8]}
50... Rc8+ {[%clk 0:00:10.8]} 51. Rc6 {[%clk 0:01:02.8]} 51... Rf8 {[%clk
0:00:05.3]} 52. Re6 {[%clk 0:00:59.9]} 52... Rc8+ {[%clk 0:00:04.8]} 53. Kd6
{[%clk 0:00:59.9]} 53... Rc4 {[%clk 0:00:02.4]} 54. Kd5 {[%clk 0:00:52.5]} 54...
Rd4+ {[%clk 0:00:02.9]} 55. Kc6 {[%clk 0:00:52.8]} 55... Rc4+ {[%clk 0:00:03.5]}
56. Kd7 {[%clk 0:00:49.1]} 56... Rxe4 {[%clk 0:00:02.8]} 57. Kc6 {[%clk
0:00:47.1]} 57... Rc4+ {[%clk 0:00:02]} 58. Kb5 {[%clk 0:00:47.7]} 58... Rxg4
{[%clk 0:00:02]} 59. Rxf6 {[%clk 0:00:48.2]} 59... Rd4 {[%clk 0:00:01.7]} 60.
Kc5 {[%clk 0:00:47.7]} 60... Rd1 {[%clk 0:00:01.5]} 61. Rg6 {[%clk 0:00:47.5]}
61... e4 {[%clk 0:00:01.7]} 62. Rxg5 {[%clk 0:00:47.6]} 62... e3 {[%clk
0:00:02.2]} 63. Re5 {[%clk 0:00:48.5]} 63... Rc1+ {[%clk 0:00:01.4]} 64. Kb5
{[%clk 0:00:48.3]} 64... Rb1+ {[%clk 0:00:01.9]} 65. Kc6 {[%clk 0:00:49.2]}
65... Rc1+ {[%clk 0:00:02.3]} 66. Kd5 {[%clk 0:00:49.3]} 66... Rd1+ {[%clk
0:00:02.7]} 67. Kc6 {[%clk 0:00:49.4]} 67... Rc1+ {[%clk 0:00:02.9]} 68. Kb5
{[%clk 0:00:50.3]} 68... Rb1+ {[%clk 0:00:03.2]} 69. Kc4 {[%clk 0:00:50.4]}
69... Rc1+ {[%clk 0:00:03.7]} 70. Kd3 {[%clk 0:00:50.6]} 70... Rd1+ {[%clk
0:00:03.6]} 71. Ke2 {[%clk 0:00:50.1]} 71... Rd6 {[%clk 0:00:04.1]} 72. Kxe3
{[%clk 0:00:48.3]} 72... Kb7 {[%clk 0:00:04.6]} 73. Ke4 {[%clk 0:00:47.8]} 73...
Kxb6 {[%clk 0:00:05]} 74. Rg5 {[%clk 0:00:48.5]} 74... Kc6 {[%clk 0:00:05.2]}
75. Ke5 {[%clk 0:00:48.8]} 75... Rd5+ {[%clk 0:00:05.4]} 76. Kf4 {[%clk
0:00:49.6]} 76... Rxg5 {[%clk 0:00:05.9]} 77. Kxg5 {[%clk 0:00:50.5]} 1/2-1/2

[Event "Late-Titled-Tuesday-Blitz-March-05-2024"]
[Site "Chess.com"]
[Date "2024.03.05"]
[Round "8"]
[White "BabageldiAnnaberdiyev"]
[Black "Cambek64"]
[Result "1/2-1/2"]
[WhiteElo "2620"]
[BlackElo "2482"]
[TimeControl "180+1"]
[EndTime "15:26:20 PST"]
[Termination "Game drawn - insufficient material"]

1. e4 {[%clk 0:03:00.9]} 1... e6 {[%clk 0:02:55.3]} 2. d4 {[%clk 0:03:00.3]}
2... d5 {[%clk 0:02:55.2]} 3. e5 {[%clk 0:03:00.8]} 3... c5 {[%clk 0:02:54.7]}
4. c3 {[%clk 0:03:01.7]} 4... Nc6 {[%clk 0:02:54.5]} 5. Nf3 {[%clk 0:03:02.3]}
5... Bd7 {[%clk 0:02:54.8]} 6. a3 {[%clk 0:03:02.5]} 6... Nge7 {[%clk
0:02:50.7]} 7. b4 {[%clk 0:03:02]} 7... cxd4 {[%clk 0:02:49.6]} 8. cxd4 {[%clk
0:03:02.9]} 8... Nf5 {[%clk 0:02:49.3]} 9. Bb2 {[%clk 0:03:02.7]} 9... Be7
{[%clk 0:02:47.3]} 10. Bd3 {[%clk 0:02:57.6]} 10... O-O {[%clk 0:02:38.6]} 11.
O-O {[%clk 0:02:57.5]} 11... a6 {[%clk 0:02:28.7]} 12. Nbd2 {[%clk 0:02:54.1]}
12... Na7 {[%clk 0:02:25.7]} 13. Nb3 {[%clk 0:02:52.6]} 13... Bb5 {[%clk
0:02:25.8]} 14. Rc1 {[%clk 0:02:42.6]} 14... Bxd3 {[%clk 0:02:24.1]} 15. Qxd3
{[%clk 0:02:43.5]} 15... Qd7 {[%clk 0:02:09]} 16. Nc5 {[%clk 0:02:41.6]} 16...
Bxc5 {[%clk 0:02:04.3]} 17. Rxc5 {[%clk 0:02:42.5]} 17... Rfc8 {[%clk
0:01:57.4]} 18. g4 {[%clk 0:02:40.7]} 18... Ne7 {[%clk 0:01:56.4]} 19. Ng5
{[%clk 0:02:38.8]} 19... Ng6 {[%clk 0:01:56.2]} 20. f4 {[%clk 0:02:36]} 20... h6
{[%clk 0:01:51.9]} 21. Nh3 {[%clk 0:02:29.3]} 21... b6 {[%clk 0:01:41.6]} 22.
Rxc8+ {[%clk 0:02:28.3]} 22... Nxc8 {[%clk 0:01:41.1]} 23. f5 {[%clk 0:02:28.8]}
23... Nf8 {[%clk 0:01:40]} 24. g5 {[%clk 0:02:27.3]} 24... exf5 {[%clk
0:01:11.6]} 25. gxh6 {[%clk 0:02:27.3]} 25... g6 {[%clk 0:01:08.8]} 26. Kh1
{[%clk 0:02:18.6]} 26... Ne6 {[%clk 0:01:06.4]} 27. Rg1 {[%clk 0:02:16.9]} 27...
Ne7 {[%clk 0:01:06.2]} 28. Bc1 {[%clk 0:02:15.4]} 28... Kh7 {[%clk 0:01:03.5]}
29. Bg5 {[%clk 0:02:14.1]} 29... b5 {[%clk 0:00:59.7]} 30. Bf6 {[%clk 0:02:10]}
30... Rc8 {[%clk 0:00:57.4]} 31. Qf3 {[%clk 0:01:51.9]} 31... Rc4 {[%clk
0:00:54.3]} 32. Rd1 {[%clk 0:01:50.5]} 32... Nc6 {[%clk 0:00:32.5]} 33. Nf4
{[%clk 0:01:32.4]} 33... Rxd4 {[%clk 0:00:25.1]} 34. Rxd4 {[%clk 0:01:06.2]}
34... Ncxd4 {[%clk 0:00:22.7]} 35. Qxd5 {[%clk 0:01:05.5]} 35... Qxd5+ {[%clk
0:00:18.8]} 36. Nxd5 {[%clk 0:01:06.4]} 36... Kxh6 {[%clk 0:00:18]} 37. Kg2
{[%clk 0:01:04.2]} 37... Nc2 {[%clk 0:00:17.7]} 38. Be7 {[%clk 0:00:37.7]} 38...
Nxa3 {[%clk 0:00:17.4]} 39. Nf6 {[%clk 0:00:38.3]} 39... Nc4 {[%clk 0:00:16.6]}
40. Bd6 {[%clk 0:00:37.1]} 40... Kg7 {[%clk 0:00:16.2]} 41. Ne8+ {[%clk
0:00:36.8]} 41... Kg8 {[%clk 0:00:16]} 42. Nf6+ {[%clk 0:00:37.7]} 42... Kh8
{[%clk 0:00:15.6]} 43. Kg3 {[%clk 0:00:36.9]} 43... Kg7 {[%clk 0:00:14.5]} 44.
Ne8+ {[%clk 0:00:36.5]} 44... Kh6 {[%clk 0:00:14.3]} 45. Nf6 {[%clk 0:00:37.4]}
45... Nxd6 {[%clk 0:00:12.6]} 46. exd6 {[%clk 0:00:37]} 46... Nd8 {[%clk
0:00:13.1]} 47. Nd5 {[%clk 0:00:33.7]} 47... Kg7 {[%clk 0:00:12.9]} 48. Nc7
{[%clk 0:00:34.3]} 48... f6 {[%clk 0:00:12.8]} 49. Nxa6 {[%clk 0:00:34]} 49...
Kf7 {[%clk 0:00:13.4]} 50. Nc7 {[%clk 0:00:34.9]} 50... Nb7 {[%clk 0:00:12.4]}
51. Nxb5 {[%clk 0:00:34.1]} 51... Ke6 {[%clk 0:00:12.4]} 52. h4 {[%clk
0:00:29.2]} 52... Nxd6 {[%clk 0:00:12.6]} 53. Nc7+ {[%clk 0:00:29.4]} 53... Ke5
{[%clk 0:00:12.4]} 54. b5 {[%clk 0:00:28.6]} 54... Nc8 {[%clk 0:00:11.9]} 55. h5
{[%clk 0:00:27.4]} 55... gxh5 {[%clk 0:00:11.1]} 56. Na8 {[%clk 0:00:26.2]}
56... f4+ {[%clk 0:00:10.3]} 57. Kf3 {[%clk 0:00:25.7]} 57... Nd6 {[%clk
0:00:09.5]} 58. b6 {[%clk 0:00:26.1]} 58... f5 {[%clk 0:00:08.3]} 59. Nc7 {[%clk
0:00:26.4]} 59... h4 {[%clk 0:00:08.5]} 60. Kg2 {[%clk 0:00:22.9]} 60... Ke4
{[%clk 0:00:07.6]} 61. Ne6 {[%clk 0:00:22.4]} 61... f3+ {[%clk 0:00:07.4]} 62.
Kf2 {[%clk 0:00:22.8]} 62... Nb7 {[%clk 0:00:03.7]} 63. Ng5+ {[%clk 0:00:23.3]}
63... Kd5 {[%clk 0:00:03.4]} 64. Nxf3 {[%clk 0:00:24.2]} 64... Kc6 {[%clk
0:00:03.6]} 65. Nxh4 {[%clk 0:00:24.8]} 65... Kxb6 {[%clk 0:00:04]} 66. Nxf5
{[%clk 0:00:25.7]} 1/2-1/2

[Event "Late-Titled-Tuesday-Blitz-March-05-2024"]
[Site "Chess.com"]
[Date "2024.03.05"]
[Round "8"]
[White "Harsha_Bharathakoti"]
[Black "Alphafischer2019"]
[Result "1/2-1/2"]
[WhiteElo "2952"]
[BlackElo "2738"]
[TimeControl "180+1"]
[EndTime "15:26:22 PST"]
[Termination "Game drawn - insufficient material"]

1. d4 {[%clk 0:03:00.9]} 1... Nf6 {[%clk 0:02:59]} 2. Bg5 {[%clk 0:03:01.5]}
2... g6 {[%clk 0:02:58.4]} 3. Bxf6 {[%clk 0:02:59.3]} 3... exf6 {[%clk
0:02:59.3]} 4. e3 {[%clk 0:02:59.3]} 4... Bg7 {[%clk 0:02:59.8]} 5. g3 {[%clk
0:02:58.6]} 5... h5 {[%clk 0:02:59.7]} 6. h4 {[%clk 0:02:58.3]} 6... O-O {[%clk
0:02:59.6]} 7. Bg2 {[%clk 0:02:58.9]} 7... d6 {[%clk 0:02:59.1]} 8. c4 {[%clk
0:02:56.7]} 8... a5 {[%clk 0:02:59.4]} 9. Nc3 {[%clk 0:02:57]} 9... f5 {[%clk
0:02:59.5]} 10. Nge2 {[%clk 0:02:57.3]} 10... Nd7 {[%clk 0:03:00]} 11. a3 {[%clk
0:02:56.6]} 11... Nf6 {[%clk 0:03:00.3]} 12. O-O {[%clk 0:02:53.4]} 12... c6
{[%clk 0:03:00.6]} 13. b4 {[%clk 0:02:53.8]} 13... Re8 {[%clk 0:02:56.8]} 14. b5
{[%clk 0:02:53.7]} 14... Bd7 {[%clk 0:02:56.8]} 15. Rb1 {[%clk 0:02:51.8]} 15...
Rc8 {[%clk 0:02:51.4]} 16. bxc6 {[%clk 0:02:40.5]} 16... bxc6 {[%clk 0:02:49.8]}
17. Nf4 {[%clk 0:02:40.2]} 17... Qc7 {[%clk 0:02:25.9]} 18. Na4 {[%clk
0:02:26.3]} 18... Rb8 {[%clk 0:02:25.1]} 19. c5 {[%clk 0:02:27]} 19... Ne4
{[%clk 0:02:20.1]} 20. Qc2 {[%clk 0:02:13.9]} 20... Rb5 {[%clk 0:02:12.4]} 21.
cxd6 {[%clk 0:02:00.8]} 21... Qxd6 {[%clk 0:02:11.2]} 22. Nc3 {[%clk 0:02:01.4]}
22... Rxb1 {[%clk 0:01:51.5]} 23. Rxb1 {[%clk 0:02:00.6]} 23... Qxa3 {[%clk
0:01:52.1]} 24. Nxe4 {[%clk 0:01:58.9]} 24... fxe4 {[%clk 0:01:53]} 25. Bxe4
{[%clk 0:01:59.5]} 25... Qd6 {[%clk 0:01:47.8]} 26. Rc1 {[%clk 0:01:23.9]} 26...
a4 {[%clk 0:01:16.1]} 27. Bd3 {[%clk 0:01:13.2]} 27... a3 {[%clk 0:01:16.5]} 28.
Bc4 {[%clk 0:01:13.9]} 28... Kf8 {[%clk 0:01:05.5]} 29. Qa2 {[%clk 0:01:14.5]}
29... Qe7 {[%clk 0:00:55]} 30. Rb1 {[%clk 0:01:05.5]} 30... Bf5 {[%clk
0:00:54.7]} 31. Rb6 {[%clk 0:00:59.3]} 31... c5 {[%clk 0:00:48.6]} 32. Qxa3
{[%clk 0:00:47.2]} 32... cxd4 {[%clk 0:00:48.2]} 33. Rb7 {[%clk 0:00:47.9]}
33... Qxa3 {[%clk 0:00:43.2]} 34. Rxf7+ {[%clk 0:00:48.4]} 34... Kg8 {[%clk
0:00:43.9]} 35. Ra7+ {[%clk 0:00:48]} 35... Kh7 {[%clk 0:00:38.5]} 36. Rxa3
{[%clk 0:00:48.7]} 36... dxe3 {[%clk 0:00:39]} 37. fxe3 {[%clk 0:00:49.5]} 37...
Rc8 {[%clk 0:00:28.9]} 38. Bd3 {[%clk 0:00:48.3]} 38... Bxd3 {[%clk 0:00:24.6]}
39. Rxd3 {[%clk 0:00:49.2]} 39... Rc6 {[%clk 0:00:24.1]} 40. Kf2 {[%clk
0:00:49.5]} 40... Kh6 {[%clk 0:00:23.8]} 41. Kf3 {[%clk 0:00:50.1]} 41... Be5
{[%clk 0:00:20.7]} 42. Rd5 {[%clk 0:00:48.9]} 42... Bxf4 {[%clk 0:00:20.5]} 43.
gxf4 {[%clk 0:00:49.8]} 43... Kg7 {[%clk 0:00:20]} 44. f5 {[%clk 0:00:17]} 44...
gxf5 {[%clk 0:00:19.8]} 45. Rxf5 {[%clk 0:00:17.3]} 45... Kg6 {[%clk 0:00:19.8]}
46. Rg5+ {[%clk 0:00:17.4]} 46... Kh6 {[%clk 0:00:20.4]} 47. e4 {[%clk
0:00:18.2]} 47... Rc3+ {[%clk 0:00:20.5]} 48. Kf4 {[%clk 0:00:14.4]} 48... Rh3
{[%clk 0:00:20.4]} 49. e5 {[%clk 0:00:15.1]} 49... Rxh4+ {[%clk 0:00:20.9]} 50.
Kf5 {[%clk 0:00:15.8]} 50... Rh1 {[%clk 0:00:18.2]} 51. Rg8 {[%clk 0:00:13.1]}
51... Rf1+ {[%clk 0:00:16.7]} 52. Ke6 {[%clk 0:00:13.6]} 52... h4 {[%clk
0:00:17.3]} 53. Kd7 {[%clk 0:00:13.8]} 53... Rd1+ {[%clk 0:00:16.7]} 54. Ke7
{[%clk 0:00:14.4]} 54... Kh5 {[%clk 0:00:13.5]} 55. e6 {[%clk 0:00:15.2]} 55...
h3 {[%clk 0:00:13.7]} 56. Kf6 {[%clk 0:00:16]} 56... Kh4 {[%clk 0:00:13.6]} 57.
e7 {[%clk 0:00:15.8]} 57... Rf1+ {[%clk 0:00:14.3]} 58. Kg6 {[%clk 0:00:15.6]}
58... Rg1+ {[%clk 0:00:11.7]} 59. Kf7 {[%clk 0:00:14.4]} 59... Rf1+ {[%clk
0:00:11.9]} 60. Ke6 {[%clk 0:00:13.4]} 60... Re1+ {[%clk 0:00:12.1]} 61. Kf6
{[%clk 0:00:14.2]} 61... Rf1+ {[%clk 0:00:12.4]} 62. Ke6 {[%clk 0:00:14.4]}
62... Re1+ {[%clk 0:00:12.8]} 63. Kd6 {[%clk 0:00:15.2]} 63... Rd1+ {[%clk
0:00:12.8]} 64. Kc5 {[%clk 0:00:14.1]} 64... Re1 {[%clk 0:00:13.2]} 65. e8=Q
{[%clk 0:00:09.5]} 65... Rxe8 {[%clk 0:00:13.3]} 66. Rxe8 {[%clk 0:00:10.4]}
66... h2 {[%clk 0:00:14]} 67. Rh8+ {[%clk 0:00:11.3]} 67... Kg3 {[%clk
0:00:14.3]} 68. Rxh2 {[%clk 0:00:12.2]} 68... Kxh2 {[%clk 0:00:14.5]} 1/2-1/2